[Event "EICC 2025"]
[Site "Eforie-Nord"]
[Date "2025.03.17"]
[Round "3.6"]
[White "Magold, Filip"]
[Black "Andersen, Mads"]
[Result "1/2-1/2"]
[Annotator "TA"]
[ECO "C89"]
[WhiteElo "2435"]
[BlackElo "2585"]
[PlyCount "64"]
[EventDate "2025.03.14"]
[EventType "swiss"]
[EventCountry "ROU"]
[SourceTitle "playchess.com"]
[Source "ChessBase"]
[SourceQuality "1"]
[TimeControl "40/5400+30:1800+30"]

{[%evp 29,64,47,52,43,68,49,83,12,23,11,10,10,10,22,22,0,0,0,0,0,0,0,0,0,0,0,0,0,0,0,0,0,0,0,0,0,0]} 1. e4 {[%emt 0:00:29]} e5 {[%emt 0:00:10]} 2. Nf3 {[%emt 0:00:06]} Nc6 {[%emt 0:00:07]} 3. Bb5 {[%emt 0:00:05]} a6 {[%emt 0:00:25]} 4. Ba4 {[%emt 0:00:07]} Nf6 {[%emt 0:00:16]} 5. O-O {[%emt 0:00:10]} Be7 {[%emt 0:00:16]} 6. Re1 {[%emt 0:00:16]} b5 {[%emt 0:00:14]} 7. Bb3 {[%emt 0:00:07]} O-O {[%emt 0:00:10]} 8. c3 {[%emt 0:00:06]} d5 {[%emt 0:00:20]} 9. exd5 {[%emt 0:00:07]} Nxd5 {[%emt 0:00:08]} 10. Nxe5 {[%emt 0:00:09]} Nxe5 {[%emt 0:00:09]} 11. Rxe5 {[%emt 0:00:07]} c6 {[%emt 0:00:24]} 12. Re1 {[%emt 0:00:08][%cal Be5e1,Be1e4,Be4h4][%mdl 32]} Bd6 {[%emt 0:02:20]} 13. d3 {[%emt 0:00:58]} Qh4 {[%emt 0:08:23]} 14. g3 {[%emt 0:00:11]} Qh3 {[%emt 0:00:07]} 15. Re4 {[%emt 0:00:10]} Nf6 {[%emt 0:00:10][%cal Bd5f6,Bf6g4,Bg4f2][%mdl 32]} 16. Rh4 {[%emt 0:00:06] C89: Closed Ruy Lopez: Marshall Attack.} Qf5 {[%emt 0:00:06]} 17. Nd2 {[%emt 0:00:09]} Ng4 $1 {[%emt 0:00:27][%mdl 4] is more profitable than 17...g5 at the moment.} 18. Nf3 $146 {[%emt 0:00:15]} (18. f3 $16 Ne3 19. Qe2) (18. Ne4 Be7 19. f3 Ne5 20. Rf4 Qd7 21. Nf2 c5 22. d4 Ng6 23. Re4 Bb7 24. Re1 cxd4 25. cxd4 {½-½ Bernadskiy,V (2592)-Matlakov,M (2662) Dubai op-A 23rd 2023 (5)}) 18... Be7 $11 {[%emt 0:02:49] [#]} 19. h3 $1 {[%emt 0:02:15]} Nxf2 {[%emt 0:01:13] The position is equal.} 20. Kxf2 {[%emt 0:00:05]} Bxh4 {[%emt 0:00:08]} 21. gxh4 {[%emt 0:00:04]} Be6 $1 {[%emt 0:00:32]} 22. Bc2 {[%emt 0:00:05]} Bd5 $1 {[%emt 0:04:53][%cal Of8e8]} 23. Kg3 {[%emt 0:00:13]} Rae8 {[%emt 0:02:11]} 24. Bf4 {[%emt 0:00:22]} Qg6+ {[%emt 0:01:33]} 25. Ng5 {[%emt 0:00:18] [#] and d4 should not be overlooked} f6 $1 {[%emt 0:00:58]} 26. h5 {[%emt 0:00:07]} Qxg5+ {[%emt 0:00:13]} 27. Bxg5 {[%emt 0:00:05]} fxg5 {[%emt 0:00:09]} 28. Bb3 {[%emt 0:00:04]} Re3+ {[%emt 0:00:43]} 29. Kh2 $1 {[%emt 0:00:09]} ({Don't go for} 29. Kg4 $2 h6 $19) 29... Rf2+ {[%emt 0:00:46]} 30. Kg1 {[%emt 0:00:03]} Ree2 {[%emt 0:00:27]} 31. Bxd5+ {[%emt 0:00:05]} cxd5 {[%emt 0:00:07]} 32. Qb3 {[%emt 0:00:01]} Rg2+ {[%emt 0:00:11] Weighted Error Value: White=0.09 (flawless) /Black=0.05 (flawless)   Mistake:       	White=1     	---        Inaccurate:     	---       	Black=1      OK:         	White=4     	Black=6      Best:        	White=3     	Black=4      Strong:       	White=1     	Black=3} 1/2-1/2

[Event "EICC 2025"]
[Site "Eforie-Nord"]
[Date "2025.03.17"]
[Round "3.7"]
[White "Horvath, Dominik"]
[Black "Yuffa, Daniil"]
[Result "0-1"]
[Annotator "TA"]
[ECO "E11"]
[WhiteElo "2538"]
[BlackElo "2654"]
[PlyCount "138"]
[EventDate "2025.03.14"]
[EventType "swiss"]
[EventCountry "ROU"]
[SourceTitle "playchess.com"]
[Source "ChessBase"]
[SourceQuality "1"]
[TimeControl "40/5400+30:1800+30"]

{[%evp 11,138,33,37,0,0,0,2,9,9,6,9,11,8,9,10,0,0,0,4,0,0,0,0,0,5,0,0,0,0,-3,0,0,0,0,16,19,18,13,20,0,0,0,0,8,34,21,67,28,30,19,70,12,9,11,9,0,9,-16,-14,-14,-23,-19,-45,-149,-152,-138,-132,-154,-148,-148,-151,-148,-151,-132,-143,-144,-112,-112,-75,-399,-76,-87,-80,-89,-83,-121,-131,-92,-15,-19,-10,-111,-110,-114,-104,-97,0,0,88,89,100,0,0,0,0,0,0,0,0,0,0,-2,0,-114,-168,-259,-249,-608,-563,-725,-745,-721,-564,-554,-554,-518,-457,-29979,-29979]} 1. d4 {[%emt 0:00:12]} Nf6 {[%emt 0:00:52]} 2. c4 {[%emt 0:00:05]} e6 {[%emt 0:00:12]} 3. g3 {[%emt 0:00:05]} Bb4+ {[%emt 0:00:51]} 4. Bd2 {[%emt 0:00:07]} a5 {[%emt 0:00:32]} 5. Nf3 {[%emt 0:00:07]} d6 {[%emt 0:00:31]} 6. Bg2 {[%emt 0:00:36]} Nbd7 {[%emt 0:00:27]} 7. Bxb4 {[%emt 0:28:04] E11: Bogo-Indian.} axb4 {[%emt 0:00:16]} 8. Qb3 {[%emt 0:00:05]} c5 {[%emt 0:07:28]} 9. dxc5 {[%emt 0:00:08] The position is equal.} dxc5 $146 {[%emt 0:28:07]} (9... Nxc5 10. Qxb4 Ra4 11. Qc3 Nfe4 12. Qc2 b5 13. cxb5 Qa5+ 14. Nfd2 O-O 15. b3 Rb4 16. Nxe4 Nxe4 {1-0 Juhasz,B (2205)-Ksieski,Z (2340) Budapest Utasellato IM 1988 (6)}) 10. O-O {[%emt 0:00:45]} O-O {[%emt 0:01:43]} 11. Nbd2 {[%emt 0:02:33]} Qc7 {[%emt 0:09:29]} 12. a3 {[%emt 0:00:30]} bxa3 {[%emt 0:00:35]} 13. Rxa3 {[%emt 0:00:03]} Rxa3 {[%emt 0:00:33]} 14. Qxa3 {[%emt 0:00:04]} b6 {[%emt 0:02:16]} 15. Nb1 {[%emt 0:08:44]} Bb7 {[%emt 0:00:28]} 16. Nc3 {[%emt 0:00:05]} Bc6 {[%emt 0:03:42]} 17. Qb3 {[%emt 0:04:35]} h6 {[%emt 0:01:23] The position is symmetric and equal} 18. Ra1 {[%emt 0:02:17]} Rd8 {[%emt 0:03:38]} 19. Nb5 {[%emt 0:01:19]} Bxb5 {[%emt 0:02:35]} 20. Qxb5 {[%emt 0:00:05]} Ne4 {[%emt 0:02:09]} 21. Qb3 {[%emt 0:08:31]} f5 {[%emt 0:03:48]} 22. Ne1 {[%emt 0:07:29]} Ndf6 {[%emt 0:09:22]} 23. Nd3 {[%emt 0:00:07]} Kh7 {[%emt 0:02:23]} 24. Ra6 {[%emt 0:03:01]} Rb8 {[%emt 0:03:53]} 25. Qa3 {[%emt 0:05:17]} Qd6 {[%emt 0:01:28]} 26. b3 {[%emt 0:01:09]} Qd4 {[%emt 0:00:59]} 27. Qa1 {[%emt 0:03:09]} Nc3 {[%emt 0:04:56] A dynamic duo of knights.} 28. Bf1 {[%emt 0:02:16]} Nfe4 {[%emt 0:01:37]} (28... Ng4 $11 {feels stronger.}) 29. e3 {[%emt 0:02:50]} Qf6 {[%emt 0:00:10]} 30. Qb2 {[%emt 0:03:58]} Rb7 {[%emt 0:03:56]} (30... Ng5 $11) 31. b4 {[%emt 0:04:50]} (31. f3 $14 Nd1 32. Qe2 (32. Qxf6 Nxf6 33. e4 fxe4 $14)) 31... cxb4 $11 {[%emt 0:00:47]} 32. Qxb4 {[%emt 0:00:47]} Nd2 $1 {[%emt 0:01:56]} 33. Ra3 {[%emt 0:00:54]} Nce4 {[%emt 0:00:41]} 34. Bg2 {[%emt 0:00:32]} (34. Be2 {simplifies} Qe7 35. Qxe7 Rxe7 36. Ne5) 34... Rd7 {[%emt 0:00:34][%cal Od7d3]} 35. Nf4 {[%emt 0:04:13][%cal Oa3a2]} (35. Qxb6 $2 Rxd3 36. Qb4 f4 $19) 35... g5 {[%emt 0:00:56]} 36. Qb5 $1 {[%emt 0:03:23]} Qe7 {[%emt 0:01:00]} 37. Rd3 {[%emt 0:01:41]} (37. Ne2 $15) 37... Ra7 $17 {[%emt 0:00:33] ( -> ...Ra1+)} 38. Bxe4 {[%emt 0:00:03]} Nxe4 {[%emt 0:00:23]} 39. Ne2 {[%emt 0:00:57][%cal Od3d1]} Ra1+ {[%emt 0:01:18] Black attacks} 40. Kg2 {[%emt 0:00:03]} Nc5 {[%emt 0:00:29] Against Rd7} 41. Rd2 {[%emt 0:08:14]} Qb7+ {[%emt 0:00:12]} 42. f3 {[%emt 0:00:03]} g4 {[%emt 0:03:03][%csl Gg4][%cal Rb7f3]} 43. Ng1 {[%emt 0:00:07]} (43. Nd4 $2 e5 44. Qc6 gxf3+ (44... exd4 $2 45. Qxb7+ Nxb7 46. exd4 $19) 45. Kxf3 exd4 $19) 43... Ra3 {[%emt 0:12:07]} 44. Re2 {[%emt 0:09:50]} Nd3 {[%emt 0:03:21]} 45. e4 $2 {[%emt 0:04:52][%mdl 8192]} (45. Rd2 $17) 45... Nc5 $2 {[%emt 0:07:44]} (45... gxf3+ $1 $19 46. Nxf3 Qg7 (46... fxe4 47. Ne5 $17)) 46. Qb2 {[%emt 0:00:36]} Rd3 {[%emt 0:01:20]} 47. Qb1 {[%emt 0:02:24]} Kg8 {[%emt 0:01:55]} 48. h3 {[%emt 0:03:01]} fxe4 {[%emt 0:01:27][%cal Bf5e4,Be4e3,Be3d2][%mdl 32]} 49. fxg4 {[%emt 0:00:29]} Qc7 {[%emt 0:00:51]} ({Black should play} 49... Na4 $17 50. Qc1 e3+ 51. Kh2 Qe4) 50. Qe1 $11 {[%emt 0:00:05]} Qd6 {[%emt 0:00:44]} 51. Ra2 {[%emt 0:02:17]} (51. Qf2 $11) 51... e3 $17 {[%emt 0:01:28] Black is more active.} 52. Ra8+ {[%emt 0:01:53]} Kh7 {[%emt 0:00:43]} 53. Ra7+ {[%emt 0:00:04] [#]} Kg6 {[%emt 0:00:51]} (53... Nd7 $1 $17 {And now ...Rd2+ would win.} 54. Nf3 e5) 54. Nf3 $11 {[%emt 0:00:05] Repels Rd2+} Rd2+ {[%emt 0:01:02]} 55. Nxd2 $16 {[%emt 0:01:26]} exd2 {[%emt 0:00:10][%mdl 4096] Endgame [#] KQR-KQN} 56. Qf1 {[%emt 0:00:07]} ({Better is} 56. Qb1+ $1 $16 Nd3 57. Kf3) 56... Nd7 $1 $36 {[%emt 0:00:22][%mdl 2048] White is under pressure.} ({And not} 56... d1=Q 57. Qf7+ Kg5 58. Qg7#) 57. Ra1 {[%emt 0:00:22]} Ne5 {[%emt 0:00:25]} 58. Qe2 {[%emt 0:01:34] Qe4+ would now be deadly.} Qc6+ {[%emt 0:00:36]} 59. Kg1 {[%emt 0:01:42]} Nxc4 {[%emt 0:01:13]} 60. Qd3+ {[%emt 0:00:25]} Kf6 {[%emt 0:00:26]} 61. Rf1+ {[%emt 0:01:18]} Ke5 {[%emt 0:00:27]} 62. Qc3+ {[%emt 0:00:39]} (62. Kf2 $11 {remains equal.}) 62... Kd6 $17 {[%emt 0:00:35] The board is on fire.} 63. h4 {[%emt 0:01:09]} (63. Kf2 $142) 63... Qe4 $19 {[%emt 0:00:52]} 64. Qf6 $2 {[%emt 0:01:55]} (64. Rd1 Qe2 (64... Qxg4 65. Rxd2+ Nxd2 66. Qxd2+ Kc5 67. Kg2 $11) 65. Qb3) 64... Qxg4 {[%emt 0:00:35]} 65. Qd8+ {[%emt 0:00:07]} Kc5 {[%emt 0:00:32]} 66. Qf8+ {[%emt 0:01:12]} Nd6 {[%emt 0:00:40]} 67. Qf2+ {[%emt 0:00:19]} Qd4 {[%emt 0:00:17]} 68. Kg2 {[%emt 0:00:10]} Nf5 {[%emt 0:00:25] ( -> ...Ne3+)} 69. Qxd4+ {[%emt 0:01:25]} (69. Rb1 $19) 69... Kxd4 {[%emt 0:00:08] Weighted Error Value: White=0.23 (precise) /Black=0.20 (precise)   Loses game:     	White=1     	---        Missed win:     	---       	Black=1      Mistake:       	White=8     	Black=5      Inaccurate:     	White=2     	Black=2      OK:         	White=15    	Black=21     Best:        	White=9     	Black=10     Strong:       	White=1     	Black=2} 0-1

[Event "EICC 2025"]
[Site "Eforie-Nord"]
[Date "2025.03.17"]
[Round "3.7"]
[White "Travadon, Loic"]
[Black "Nisipeanu, Liviu-Dieter"]
[Result "1/2-1/2"]
[Annotator "TA"]
[ECO "B10"]
[WhiteElo "2433"]
[BlackElo "2584"]
[PlyCount "42"]
[EventDate "2025.03.14"]
[EventType "swiss"]
[EventCountry "ROU"]
[SourceTitle "playchess.com"]
[Source "ChessBase"]
[SourceQuality "1"]
[TimeControl "40/5400+30:1800+30"]

{[%evp 9,42,-6,4,0,0,-15,-10,-7,0,0,-4,-5,-12,-15,-6,-15,0,0,14,0,0,0,0,0,13,0,0,0,5,-16,0,0,0,-18,0]} 1. e4 {[%emt 0:00:06]} c6 {[%emt 0:00:07]} 2. Nf3 {[%emt 0:03:22]} d5 {[%emt 0:00:09]} 3. d3 {[%emt 0:01:36]} dxe4 {[%emt 0:00:22]} 4. dxe4 {[%emt 0:00:07]} Qxd1+ {[%emt 0:00:04]} 5. Kxd1 {[%emt 0:00:07]} Nf6 {[%emt 0:00:05][%cal Bg8f6,Bf6d7,Bd7b6,Bb6a4][%mdl 32] The position is equal.} 6. Bd3 {[%emt 0:02:17] B10: Caro-Kann: 2 d3 and 2 c4.} Nbd7 {[%emt 0:01:06][%cal Bb8d7,Bd7c5,Bc5d3][%mdl 32]} 7. a4 {[%emt 0:05:00]} Nc5 {[%emt 0:09:15]} 8. Nbd2 {[%emt 0:00:23]} Nfd7 $146 {[%emt 0:07:27]} (8... Bg4 9. a5 O-O-O 10. Ke2 e5 11. h3 Bxf3+ 12. gxf3 Ne6 13. Nc4 Bd6 14. Be3 a6 15. Nxd6+ Rxd6 {½-½ Zhao,Z (2478)-Melkumyan,H (2646) Gold Coast op 2024 (6)}) 9. b4 {[%emt 0:25:22]} Nxd3 {[%emt 0:00:19]} 10. cxd3 {[%emt 0:00:05]} e5 {[%emt 0:11:49]} 11. Ba3 {[%emt 0:01:03]} f6 {[%emt 0:06:04]} 12. Ke2 {[%emt 0:00:35]} Nb6 {[%emt 0:19:37]} 13. a5 {[%emt 0:00:30]} Na4 {[%emt 0:00:02]} 14. Rhc1 {[%emt 0:00:52] Prevents Nc3+} Bd7 {[%emt 0:00:48]} 15. Nc4 {[%emt 0:03:46][%cal Bd2c4,Bc4e3,Be3f5][%mdl 32]} Be7 {[%emt 0:04:09]} 16. Rc2 {[%emt 0:09:18]} Rc8 {[%emt 0:13:24]} 17. Ne3 {[%emt 0:03:12]} Kf7 {[%emt 0:00:39]} 18. Nf5 {[%emt 0:05:45]} Bf8 {[%emt 0:01:23]} 19. Ne3 {[%emt 0:06:46]} Be7 {[%emt 0:01:39]} 20. Nf5 {[%emt 0:06:37]} Bf8 {[%emt 0:00:08]} 21. Ne3 {[%emt 0:00:28]} Be7 {[%emt 0:02:56] Not much happened in this game.   Weighted Error Value: White=0.04 (flawless) /Black=0.04 (flawless)   OK:         	White=8     	Black=10} 1/2-1/2

[Event "EICC 2025"]
[Site "Eforie-Nord"]
[Date "2025.03.17"]
[Round "3.8"]
[White "Sonis, Francesco"]
[Black "Sowinski, Pawel"]
[Result "1-0"]
[Annotator "TA"]
[ECO "B12"]
[WhiteElo "2570"]
[BlackElo "2420"]
[PlyCount "83"]
[EventDate "2025.03.14"]
[EventType "swiss"]
[EventCountry "ROU"]
[SourceTitle "playchess.com"]
[Source "ChessBase"]
[SourceQuality "1"]
[TimeControl "40/5400+30:1800+30"]

{[%evp 10,83,51,0,0,0,0,0,18,18,10,8,43,22,25,16,8,15,74,41,47,20,28,7,68,40,44,41,103,52,55,44,64,60,63,70,93,77,154,136,213,227,218,228,227,211,192,219,224,190,177,182,166,141,214,197,237,218,230,236,205,102,170,170,185,169,165,108,182,166,327,330,407,427,435,435]} 1. e4 {[%emt 0:00:03]} c6 {[%emt 0:00:18]} 2. d4 {[%emt 0:00:07]} d5 {[%emt 0:00:04]} 3. e5 {[%emt 0:00:04]} Bf5 {[%emt 0:00:28]} 4. h4 {[%emt 0:00:09]} h6 {[%emt 0:00:41]} 5. g4 {[%emt 0:05:20]} Bd7 {[%emt 0:00:06]} 6. h5 {[%emt 0:23:21]} (6. Nc3 $14) 6... c5 $11 {[%emt 0:01:55] now scores much better than the old 6...e6. B12: Caro-Kann: Advance Variation.} 7. c3 {[%emt 0:00:10]} Nc6 {[%emt 0:02:13]} 8. Na3 {[%emt 0:02:01]} cxd4 {[%emt 0:06:16] The position is equal.} 9. cxd4 {[%emt 0:00:24]} Qb6 {[%emt 0:17:23]} 10. Nc2 {[%emt 0:00:32]} Rc8 {[%emt 0:02:33]} 11. Be2 {[%emt 0:10:18]} e6 {[%emt 0:10:39]} 12. Nf3 {[%emt 0:04:38]} Nge7 {[%emt 0:05:14]} 13. Kf1 {[%emt 0:11:24]} Rg8 $146 {[%emt 0:06:26]} (13... Na5 $11) (13... Nb4 14. Nxb4 Qxb4 15. Kg2 Bb5 16. Bd2 Bxe2 17. Qxe2 Qb6 18. Bc3 a6 19. Qe3 Rg8 {1-0 Spriestersbach,K (2063)-Pedersen,C (2025) EU-Cup 39th Vrnjacka Banja 2024 (6.5)}) 14. Rh3 {[%emt 0:07:19]} Nb4 {[%emt 0:03:33] Space Advantage White} 15. Na3 {[%emt 0:08:54]} a6 {[%emt 0:06:29]} 16. Bd2 {[%emt 0:01:17]} Nbc6 {[%emt 0:00:22]} (16... Kd8 $11) 17. Bc3 {[%emt 0:03:19]} g5 {[%emt 0:01:54]} 18. Qd2 {[%emt 0:01:49]} Qc7 {[%emt 0:12:00]} ({Black should try} 18... Bg7 $14) 19. Ne1 {[%emt 0:02:13] White is more active.} (19. Nc2 $16) 19... Bg7 $14 {[%emt 0:01:08]} 20. Nd3 {[%emt 0:01:57]} f6 {[%emt 0:02:09]} 21. exf6 {[%emt 0:01:32]} Bxf6 {[%emt 0:00:02]} 22. Qe3 {[%emt 0:00:07]} Qd6 {[%emt 0:04:39]} 23. Nc2 {[%emt 0:02:04]} b5 {[%emt 0:03:44]} (23... Rf8 $142) 24. a3 {[%emt 0:00:43]} Na5 {[%emt 0:05:10]} (24... Bg7 $16 25. Re1 a5) 25. Bxa5 $18 {[%emt 0:02:17]} (25. Bb4 Qc7) 25... Rxc2 {[%emt 0:00:05]} 26. Bc3 {[%emt 0:00:01]} Nc6 {[%emt 0:02:46]} 27. Bd1 {[%emt 0:04:29]} Rxc3 {[%emt 0:00:30]} 28. bxc3 {[%emt 0:00:02]} Kd8 {[%emt 0:00:20]} 29. Nc5 {[%emt 0:01:30]} Bc8 {[%emt 0:00:05] Wards off Nb7+} 30. Bf3 {[%emt 0:01:25]} Re8 {[%emt 0:00:20]} 31. Nd3 {[%emt 0:00:22]} Na5 {[%emt 0:01:26]} (31... Re7 $16 32. Kg2 Rc7) 32. Ne5 {[%emt 0:02:12]} Bxe5 {[%emt 0:00:03]} 33. dxe5 {[%emt 0:00:03]} (33. Qxe5 Qxe5 34. dxe5 Bd7 $16) 33... Qc7 {[%emt 0:00:04] [#]} 34. Be2 {[%emt 0:00:22]} Rf8 {[%emt 0:02:37]} 35. Re1 {[%emt 0:01:13]} (35. Rf3 $18 {is more deadly.} Rxf3 36. Qxf3 Qxe5 37. Qf8+ Kc7 38. Qxh6) 35... Nc4 {[%emt 0:00:37]} (35... Rf4 $16) 36. Bxc4 {[%emt 0:00:17]} Qxc4+ {[%emt 0:00:03]} 37. Qe2 {[%emt 0:00:04]} Qf4 {[%emt 0:01:36]} 38. Kg1 {[%emt 0:00:47]} ({White should try} 38. Rd3 $18) 38... Bb7 {[%emt 0:00:16]} (38... Qa4 $16 {was worth a try.} 39. Rg3 Qxa3) 39. Rd3 {[%emt 0:00:27]} Ke7 $2 {[%emt 0:00:33] [#]} (39... Qa4 40. Qe4 Rf4) 40. Rd4 {[%emt 0:00:00]} Qf3 {[%emt 0:00:00]} 41. Qxf3 {[%emt 0:00:37]} Rxf3 {[%emt 0:00:36]} 42. Re3 {[%emt 0:00:02] Weighted Error Value: White=0.15 (very precise) /Black=0.34  Mistake:       	White=3     	Black=9      Inaccurate:     	White=3     	Black=1      OK:         	White=13    	Black=11     Best:        	White=3     	Black=1} 1-0

[Event "EICC 2025"]
[Site "Eforie-Nord"]
[Date "2025.03.17"]
[Round "3.8"]
[White "Pantsulaia, Levan"]
[Black "Saric, Ivan"]
[Result "1/2-1/2"]
[Annotator "RC"]
[ECO "A05"]
[WhiteElo "2538"]
[BlackElo "2652"]
[PlyCount "43"]
[EventDate "2025.03.14"]
[EventType "swiss"]
[EventCountry "ROU"]
[SourceTitle "playchess.com"]
[Source "ChessBase"]
[SourceQuality "1"]
[TimeControl "40/5400+30:1800+30"]

1. Nf3 {[%emt 0:00:06]} Nf6 {[%emt 0:00:13]} 2. g3 {[%emt 0:01:38]} g6 {[%emt 0:00:24]} 3. b3 {[%emt 0:00:13]} d5 {[%emt 0:00:56]} 4. Bb2 {[%emt 0:01:20]} c5 {[%emt 0:00:28]} 5. Bg2 {[%emt 0:00:06]} Bg7 {[%emt 0:01:11]} 6. O-O {[%emt 0:00:12]} O-O {[%emt 0:05:41]} 7. c4 {[%emt 0:07:15]} d4 {[%emt 0:00:22]} 8. b4 {[%emt 0:00:09]} Re8 {[%emt 0:01:38]} 9. d3 {[%emt 0:02:45]} e5 {[%emt 0:00:35]} 10. bxc5 {[%emt 0:06:50]} Na6 {[%emt 0:01:26]} 11. Nbd2 {[%emt 0:07:21]} Nxc5 {[%emt 0:00:22]} 12. Ba3 {[%emt 0:00:07]} Qc7 {[%emt 0:11:02]} 13. Nb3 {[%emt 0:02:53]} Na4 {[%emt 0:06:50]} 14. Nbxd4 {[%emt 0:07:30]} Nc3 {[%emt 0:00:19]} 15. Nb5 {[%emt 0:05:18]} Nxb5 {[%emt 0:00:07]} 16. cxb5 {[%emt 0:00:06]} e4 {[%emt 0:00:22]} 17. Nd2 {[%emt 0:00:45]} exd3 {[%emt 0:09:03]} 18. exd3 {[%emt 0:02:44]} Bf5 {[%emt 0:08:10]} 19. Rc1 {[%emt 0:03:34]} Qd7 {[%emt 0:00:35]} 20. Nc4 {[%emt 0:24:06]} Bxd3 {[%emt 0:00:49]} 21. Bxb7 {[%emt 0:02:19]} Qxb7 {[%emt 0:08:24]} 22. Qxd3 {[%emt 0:00:09]} 1/2-1/2

[Event "EICC 2025"]
[Site "Eforie-Nord"]
[Date "2025.03.17"]
[Round "3.9"]
[White "Alonso Rosell, Alvar"]
[Black "Bluebaum, Matthias"]
[Result "1/2-1/2"]
[Annotator "TA"]
[ECO "A07"]
[WhiteElo "2535"]
[BlackElo "2643"]
[PlyCount "33"]
[EventDate "2025.03.14"]
[EventType "swiss"]
[EventCountry "ROU"]
[SourceTitle "playchess.com"]
[Source "ChessBase"]
[SourceQuality "1"]
[TimeControl "40/5400+30:1800+30"]

{[%evp 12,33,37,8,11,15,14,0,0,0,36,38,27,22,31,36,25,0,0,0,25,0,0,0]} 1. Nf3 {[%emt 0:00:03]} d5 {[%emt 0:00:08]} 2. g3 {[%emt 0:00:05]} c6 {[%emt 0:00:20]} 3. Bg2 {[%emt 0:00:13]} Bf5 {[%emt 0:00:05]} 4. O-O {[%emt 0:08:00]} Nd7 {[%emt 0:01:02]} 5. d3 {[%emt 0:14:26][%cal Bd2d3,Bd3e4][%mdl 32]} e5 {[%emt 0:00:46]} 6. Nbd2 {[%emt 0:08:54]} Ngf6 {[%emt 0:01:04]} 7. Qe1 {[%emt 0:08:16]} h6 {[%emt 0:04:46] A07: Réti Opening: New York and Capablanca Systems.} 8. e4 {[%emt 0:02:13]} dxe4 {[%emt 0:00:05]} 9. dxe4 {[%emt 0:00:47]} Be6 {[%emt 0:00:11]} 10. Qe2 {[%emt 0:02:17]} Bc5 $5 {[%emt 0:05:17][%mdl 4] Exploring less charted territory.} 11. b3 {[%emt 0:04:02]} b5 {[%emt 0:18:14]} 12. Bb2 {[%emt 0:00:52]} Qc7 {[%emt 0:01:18]} 13. Ne1 {[%emt 0:04:34]} Bg4 $5 $146 {[%emt 0:04:58][%mdl 8] New and interesting.} (13... Bd6 14. Nd3 c5 15. c4 bxc4 16. Nxc4 Bxc4 17. bxc4 O-O 18. f4 Rfe8 19. Rae1 Rab8 20. Bc3 Re7 {1-0 Rozentalis,E (2476)-Drozdowski,K (2448) Krakow op 2024 (8)}) 14. Bf3 {[%emt 0:01:41]} Bh3 {[%emt 0:02:54]} 15. Bg2 {[%emt 0:00:06]} Bg4 {[%emt 0:00:10]} 16. Bf3 {[%emt 0:02:43]} Bh3 {[%emt 0:02:37]} 17. Bg2 {[%emt 0:00:04] Weighted Error Value: White=0.10 (very precise) /Black=0.04 (flawless)   Inaccurate:     	---       	Black=1      OK:         	White=7     	Black=6} 1/2-1/2

[Event "EICC 2025"]
[Site "Eforie-Nord"]
[Date "2025.03.17"]
[Round "3.9"]
[White "Manafov, Vugar"]
[Black "Can, Emre"]
[Result "1/2-1/2"]
[Annotator "TA"]
[ECO "D38"]
[WhiteElo "2428"]
[BlackElo "2562"]
[PlyCount "34"]
[EventDate "2025.03.14"]
[EventType "swiss"]
[EventCountry "ROU"]
[SourceTitle "playchess.com"]
[Source "ChessBase"]
[SourceQuality "1"]
[TimeControl "40/5400+30:1800+30"]

{[%evp 15,21,26,32,27,33,25,66,92]} 1. d4 {[%emt 0:00:04]} d5 {[%emt 0:00:26]} 2. Nf3 {[%emt 0:00:25]} Nf6 {[%emt 0:00:48]} 3. c4 {[%emt 0:00:20]} e6 {[%emt 0:00:18]} 4. Nc3 {[%emt 0:00:21]} Bb4 {[%emt 0:00:39]} 5. Bg5 {[%emt 0:01:15]} h6 {[%emt 0:00:50]} 6. Bxf6 {[%emt 0:00:15]} Qxf6 {[%emt 0:00:09]} 7. e3 {[%emt 0:00:15]} O-O {[%emt 0:00:22]} 8. Rc1 {[%emt 0:00:18]} Nc6 {[%emt 0:00:53]} 9. a3 {[%emt 0:02:01] D38: Queen's Gambit Declined: Ragozin Defence (4 Nf3 Bb4).} Bxc3+ {[%emt 0:00:58]} 10. Rxc3 {[%emt 0:00:23]} dxc4 {[%emt 0:00:36]} 11. Bxc4 {[%emt 0:00:12] OK:         	---       	Black=2} {Predecessor:} e5 $146 12. Nxe5 Nxe5 13. dxe5 Qxe5 14. O-O Bf5 15. Qh5 Qf6 16. Qf3 Qg6 17. Qf4 c6 {½-½ Kozul,Z (2549)-Yilmaz,M (2621) Zagreb Peace 2022 (1)} 1/2-1/2